[Event "*** SCC Grand Prix: Titled Tuesday Blitz"]
[Site "Chess.com"]
[Date "2020.08.11"]
[Round "8"]
[White "martynkovaelena"]
[Black "Barmen_EV"]
[Result "1-0"]
[WhiteElo "2261"]
[BlackElo "2400"]
[TimeControl "180+1"]
[EndTime "11:35:44 PDT"]
[Termination "martynkovaelena won by checkmate"]

1. d4 {[%clk 0:03:00.2]} 1... d5 {[%clk 0:03:00]} 2. c4 {[%clk 0:02:59.9]} 2...
e6 {[%clk 0:02:59.8]} 3. Nf3 {[%clk 0:02:59.3]} 3... Nf6 {[%clk 0:02:57.2]} 4.
g3 {[%clk 0:02:59.5]} 4... dxc4 {[%clk 0:02:56.7]} 5. Bg2 {[%clk 0:02:58.9]}
5... Nc6 {[%clk 0:02:57.1]} 6. Qa4 {[%clk 0:02:58]} 6... Bb4+ {[%clk 0:02:56.6]}
7. Bd2 {[%clk 0:02:55.4]} 7... Nd5 {[%clk 0:02:57.5]} 8. Bxb4 {[%clk 0:02:55.2]}
8... Nxb4 {[%clk 0:02:57.3]} 9. Na3 {[%clk 0:02:42.9]} 9... Bd7 {[%clk
0:02:40.7]} 10. Qb5 {[%clk 0:02:34.2]} 10... O-O {[%clk 0:02:11.1]} 11. Qxc4
{[%clk 0:02:32]} 11... Qe7 {[%clk 0:01:54.8]} 12. O-O {[%clk 0:02:30.5]} 12...
e5 {[%clk 0:01:49.3]} 13. dxe5 {[%clk 0:02:12.8]} 13... Be6 {[%clk 0:01:43.9]}
14. Qf4 {[%clk 0:01:50.8]} 14... Nxa2 {[%clk 0:01:32.1]} 15. Nb5 {[%clk
0:01:47.6]} 15... Nab4 {[%clk 0:01:27.8]} 16. Nfd4 {[%clk 0:01:30.1]} 16... Nxd4
{[%clk 0:01:08.9]} 17. Nxd4 {[%clk 0:01:29.5]} 17... c5 {[%clk 0:01:02]} 18.
Nxe6 {[%clk 0:01:25.7]} 18... fxe6 {[%clk 0:01:00.7]} 19. Qc4 {[%clk 0:01:22.6]}
19... a6 {[%clk 0:00:48.7]} 20. Rac1 {[%clk 0:01:15.5]} 20... Rac8 {[%clk
0:00:46.9]} 21. Rfd1 {[%clk 0:01:09.1]} 21... b5 {[%clk 0:00:44]} 22. Qg4 {[%clk
0:01:08.4]} 22... c4 {[%clk 0:00:38.1]} 23. Rd6 {[%clk 0:01:02.1]} 23... Rce8
{[%clk 0:00:22.2]} 24. Rcd1 {[%clk 0:00:59.3]} 24... Qf7 {[%clk 0:00:21.3]} 25.
f4 {[%clk 0:00:55.7]} 25... Kh8 {[%clk 0:00:20.2]} 26. Be4 {[%clk 0:00:41.9]}
26... Nd5 {[%clk 0:00:13.6]} 27. Bxd5 {[%clk 0:00:37.8]} 27... exd5 {[%clk
0:00:14.5]} 28. R1xd5 {[%clk 0:00:37.2]} 28... b4 {[%clk 0:00:13.5]} 29. Rd7
{[%clk 0:00:30.5]} 29... Qg8 {[%clk 0:00:13.3]} 30. Rc5 {[%clk 0:00:25.5]} 30...
Rf7 {[%clk 0:00:06.3]} 31. Rxc4 {[%clk 0:00:20.5]} 31... Rxd7 {[%clk 0:00:05.3]}
32. Qxd7 {[%clk 0:00:20.5]} 32... Rd8 {[%clk 0:00:02.4]} 33. Qc6 {[%clk
0:00:18.7]} 33... a5 {[%clk 0:00:01.6]} 34. Kf2 {[%clk 0:00:17.4]} 34... h6
{[%clk 0:00:01.3]} 35. Qe4 {[%clk 0:00:16.8]} 35... Re8 {[%clk 0:00:01.2]} 36.
b3 {[%clk 0:00:16.9]} 36... Qf8 {[%clk 0:00:02]} 37. Qc6 {[%clk 0:00:15.9]}
37... Qe7 {[%clk 0:00:02.3]} 38. Rd4 {[%clk 0:00:15.3]} 38... Rf8 {[%clk
0:00:02.3]} 39. Rd7 {[%clk 0:00:14.9]} 39... Qe8 {[%clk 0:00:02.8]} 40. Qd5
{[%clk 0:00:14]} 40... Qb8 {[%clk 0:00:02.5]} 41. Rb7 {[%clk 0:00:13.5]} 41...
Qa8 {[%clk 0:00:02.4]} 42. Qd7 {[%clk 0:00:13.2]} 42... Rg8 {[%clk 0:00:02.6]}
43. e6 {[%clk 0:00:13.7]} 43... a4 {[%clk 0:00:02.3]} 44. e7 {[%clk 0:00:13.5]}
44... Qa5 {[%clk 0:00:02]} 45. Qxa4 {[%clk 0:00:12.4]} 45... Qc5+ {[%clk
0:00:02.9]} 46. Kf1 {[%clk 0:00:11.3]} 46... Qc1+ {[%clk 0:00:02.9]} 47. Kg2
{[%clk 0:00:11.3]} 47... Qe3 {[%clk 0:00:03.2]} 48. Qb5 {[%clk 0:00:09.3]} 48...
Qe4+ {[%clk 0:00:02.6]} 49. Kf2 {[%clk 0:00:09.5]} 49... Qd4+ {[%clk 0:00:02.4]}
50. Kf3 {[%clk 0:00:09.8]} 50... Qd6 {[%clk 0:00:01.8]} 51. Qd7 {[%clk
0:00:08.4]} 51... Rf8 {[%clk 0:00:02.1]} 52. exf8=Q+ {[%clk 0:00:07.6]} 52...
Qxf8 {[%clk 0:00:02.1]} 53. Qc7 {[%clk 0:00:07.3]} 53... Qg8 {[%clk 0:00:02.1]}
54. Rb8 {[%clk 0:00:07.3]} 54... Kh7 {[%clk 0:00:03]} 55. Rxg8 {[%clk
0:00:06.8]} 55... Kxg8 {[%clk 0:00:03.9]} 56. Qc4+ {[%clk 0:00:07.4]} 56... Kh7
{[%clk 0:00:03.2]} 57. Qxb4 {[%clk 0:00:08]} 57... h5 {[%clk 0:00:03.9]} 58. Qc5
{[%clk 0:00:08.5]} 58... Kh6 {[%clk 0:00:04.8]} 59. b4 {[%clk 0:00:08.9]} 59...
h4 {[%clk 0:00:05.7]} 60. Qg5+ {[%clk 0:00:08.2]} 60... Kh7 {[%clk 0:00:05.4]}
61. f5 {[%clk 0:00:08.5]} 61... Kg8 {[%clk 0:00:06.3]} 62. f6 {[%clk 0:00:08.4]}
62... Kf7 {[%clk 0:00:07.2]} 63. Qxg7+ {[%clk 0:00:08.5]} 63... Ke6 {[%clk
0:00:08.1]} 64. Qe7+ {[%clk 0:00:08.5]} 64... Kd5 {[%clk 0:00:09]} 65. f7 {[%clk
0:00:08.7]} 65... Kc4 {[%clk 0:00:09.9]} 66. f8=Q {[%clk 0:00:08.2]} 66... Kb3
{[%clk 0:00:10.8]} 67. Qe6+ {[%clk 0:00:07.9]} 67... Ka4 {[%clk 0:00:11.7]} 68.
Qa8+ {[%clk 0:00:07.4]} 68... Kb5 {[%clk 0:00:12.6]} 69. Qa5# {[%clk 0:00:07.3]}
1-0

[Event "*** SCC Grand Prix: Titled Tuesday Blitz"]
[Site "Chess.com"]
[Date "2020.08.11"]
[Round "8"]
[White "Zhani-Z"]
[Black "GalperinPlaton"]
[Result "1/2-1/2"]
[WhiteElo "2469"]
[BlackElo "2609"]
[TimeControl "180+1"]
[EndTime "11:35:45 PDT"]
[Termination "Game drawn - insufficient material"]

1. e4 {[%clk 0:03:00.9]} 1... c5 {[%clk 0:02:59]} 2. Nf3 {[%clk 0:02:59.9]} 2...
a6 {[%clk 0:02:55.5]} 3. g3 {[%clk 0:02:51.8]} 3... b5 {[%clk 0:02:54.1]} 4. Bg2
{[%clk 0:02:51.2]} 4... Bb7 {[%clk 0:02:54.5]} 5. O-O {[%clk 0:02:51.3]} 5...
Bxe4 {[%clk 0:02:53.7]} 6. Nc3 {[%clk 0:02:33.5]} 6... Bb7 {[%clk 0:02:53.6]} 7.
d4 {[%clk 0:02:34]} 7... cxd4 {[%clk 0:02:53.4]} 8. Nxd4 {[%clk 0:02:33.6]} 8...
Bxg2 {[%clk 0:02:52.3]} 9. Kxg2 {[%clk 0:02:34.1]} 9... e6 {[%clk 0:02:52.5]}
10. Re1 {[%clk 0:02:28.4]} 10... Nf6 {[%clk 0:02:46.3]} 11. Qf3 {[%clk
0:02:11.5]} 11... d5 {[%clk 0:02:33.7]} 12. Bg5 {[%clk 0:02:07.2]} 12... Be7
{[%clk 0:02:25.9]} 13. Nf5 {[%clk 0:02:03.3]} 13... exf5 {[%clk 0:02:15.2]} 14.
Bxf6 {[%clk 0:02:02.7]} 14... gxf6 {[%clk 0:02:15.8]} 15. Nxd5 {[%clk
0:01:02.7]} 15... Ra7 {[%clk 0:02:09.3]} 16. Rad1 {[%clk 0:00:57.5]} 16... Rd7
{[%clk 0:01:48]} 17. Nxf6+ {[%clk 0:00:57.1]} 17... Kf8 {[%clk 0:01:46.2]} 18.
Nxd7+ {[%clk 0:00:56.4]} 18... Nxd7 {[%clk 0:01:46.4]} 19. Qc6 {[%clk
0:00:33.7]} 19... Ke8 {[%clk 0:01:38.5]} 20. Re2 {[%clk 0:00:31.4]} 20... Rg8
{[%clk 0:01:35.8]} 21. Red2 {[%clk 0:00:23.9]} 21... Rg6 {[%clk 0:01:32.8]} 22.
Qxd7+ {[%clk 0:00:23.5]} 22... Qxd7 {[%clk 0:01:33.1]} 23. Rxd7 {[%clk
0:00:24.1]} 23... Bc5 {[%clk 0:01:26.3]} 24. R7d5 {[%clk 0:00:20.6]} 24... Rc6
{[%clk 0:01:23.2]} 25. Rxf5 {[%clk 0:00:20]} 25... b4 {[%clk 0:01:21.6]} 26.
Re1+ {[%clk 0:00:15.3]} 26... Kf8 {[%clk 0:01:21.2]} 27. Re4 {[%clk 0:00:13.8]}
27... Be7 {[%clk 0:01:17.2]} 28. Ref4 {[%clk 0:00:12.9]} 28... f6 {[%clk
0:01:15.8]} 29. Ra5 {[%clk 0:00:11.4]} 29... Rxc2 {[%clk 0:01:14.8]} 30. Rxa6
{[%clk 0:00:11.4]} 30... Rxb2 {[%clk 0:01:15]} 31. Re4 {[%clk 0:00:11.6]} 31...
Bc5 {[%clk 0:01:14.8]} 32. Rxf6+ {[%clk 0:00:11.1]} 32... Kg7 {[%clk 0:01:15.3]}
33. Rf5 {[%clk 0:00:11.4]} 33... Ba7 {[%clk 0:01:02]} 34. Re7+ {[%clk
0:00:10.8]} 34... Kg6 {[%clk 0:01:02.5]} 35. Rxa7 {[%clk 0:00:09.4]} 35... Kxf5
{[%clk 0:01:01.7]} 36. h4 {[%clk 0:00:08.7]} 36... h5 {[%clk 0:01:01.4]} 37.
Ra5+ {[%clk 0:00:08.5]} 37... Ke4 {[%clk 0:01:01.6]} 38. Rxh5 {[%clk 0:00:07.2]}
38... Rxa2 {[%clk 0:01:01.3]} 39. Rb5 {[%clk 0:00:07.8]} 39... Ra4 {[%clk
0:00:54]} 40. h5 {[%clk 0:00:08.1]} 40... Kd4 {[%clk 0:00:54.4]} 41. h6 {[%clk
0:00:08.3]} 41... Kc4 {[%clk 0:00:54.9]} 42. Rb7 {[%clk 0:00:08.4]} 42... Ra6
{[%clk 0:00:52.1]} 43. h7 {[%clk 0:00:08]} 43... Rh6 {[%clk 0:00:53]} 44. g4
{[%clk 0:00:07.9]} 44... b3 {[%clk 0:00:53.5]} 45. g5 {[%clk 0:00:07.6]} 45...
Rh5 {[%clk 0:00:53.9]} 46. f4 {[%clk 0:00:07.4]} 46... Kd5 {[%clk 0:00:42.7]}
47. Rxb3 {[%clk 0:00:05.9]} 47... Rxh7 {[%clk 0:00:40.6]} 48. Re3 {[%clk
0:00:05.8]} 48... Kd4 {[%clk 0:00:40.1]} 49. Re1 {[%clk 0:00:05.8]} 49... Rh4
{[%clk 0:00:40.2]} 50. Kg3 {[%clk 0:00:06.1]} 50... Rh8 {[%clk 0:00:40.7]} 51.
Kg4 {[%clk 0:00:06.3]} 51... Rh2 {[%clk 0:00:40.4]} 52. g6 {[%clk 0:00:05.7]}
52... Kd5 {[%clk 0:00:41.3]} 53. Kf5 {[%clk 0:00:05.4]} 53... Rg2 {[%clk
0:00:32.7]} 54. Rd1+ {[%clk 0:00:05.4]} 54... Kc6 {[%clk 0:00:32.7]} 55. Kf6
{[%clk 0:00:06.3]} 55... Rg1 {[%clk 0:00:31.4]} 56. f5 {[%clk 0:00:07.2]} 56...
Rxd1 {[%clk 0:00:31.3]} 57. g7 {[%clk 0:00:07.4]} 57... Rg1 {[%clk 0:00:15.2]}
58. Kf7 {[%clk 0:00:07.3]} 58... Kd6 {[%clk 0:00:15.7]} 59. f6 {[%clk
0:00:04.7]} 59... Ke5 {[%clk 0:00:15.3]} 60. Ke7 {[%clk 0:00:03.6]} 60... Rg6
{[%clk 0:00:15.6]} 61. f7 {[%clk 0:00:02]} 61... Rxg7 {[%clk 0:00:15.6]} 62. Ke8
{[%clk 0:00:02.5]} 62... Rxf7 {[%clk 0:00:06.9]} 63. Kxf7 {[%clk 0:00:02.6]}
1/2-1/2

[Event "*** SCC Grand Prix: Titled Tuesday Blitz"]
[Site "Chess.com"]
[Date "2020.08.11"]
[Round "8"]
[White "GiantThresher"]
[Black "pedromartinez91"]
[Result "1-0"]
[WhiteElo "2726"]
[BlackElo "2577"]
[TimeControl "180+1"]
[EndTime "11:35:56 PDT"]
[Termination "GiantThresher won on time"]

1. e4 {[%clk 0:02:36.7]} 1... Nf6 {[%clk 0:02:59.4]} 2. e5 {[%clk 0:02:36.7]}
2... Ng8 {[%clk 0:02:59.9]} 3. Nc3 {[%clk 0:02:34.8]} 3... d6 {[%clk 0:03:00]}
4. exd6 {[%clk 0:02:32.9]} 4... exd6 {[%clk 0:02:50.7]} 5. d4 {[%clk 0:02:25.9]}
5... Nf6 {[%clk 0:02:51.1]} 6. Bf4 {[%clk 0:02:23.6]} 6... Be7 {[%clk
0:02:51.2]} 7. Qd2 {[%clk 0:02:23.8]} 7... Kf8 {[%clk 0:02:51]} 8. O-O-O {[%clk
0:02:24.5]} 8... Nc6 {[%clk 0:02:41.5]} 9. d5 {[%clk 0:02:21.5]} 9... Nb8 {[%clk
0:02:39.6]} 10. Nf3 {[%clk 0:02:21.1]} 10... Nbd7 {[%clk 0:02:38.9]} 11. h3
{[%clk 0:02:17.2]} 11... Nc5 {[%clk 0:02:32]} 12. Re1 {[%clk 0:02:14.2]} 12...
Bf5 {[%clk 0:02:15.7]} 13. Nd4 {[%clk 0:02:06.5]} 13... Bd7 {[%clk 0:02:10.5]}
14. g4 {[%clk 0:02:02.7]} 14... h6 {[%clk 0:02:09.3]} 15. Bg2 {[%clk 0:01:58]}
15... Ne8 {[%clk 0:01:54.6]} 16. Bh2 {[%clk 0:01:52.6]} 16... Bh4 {[%clk
0:01:53.3]} 17. Kb1 {[%clk 0:01:49.2]} 17... b5 {[%clk 0:01:49.6]} 18. Ne4
{[%clk 0:01:36.5]} 18... Nxe4 {[%clk 0:01:42.7]} 19. Rxe4 {[%clk 0:01:37.4]}
19... Nf6 {[%clk 0:01:40.6]} 20. Re2 {[%clk 0:01:36.5]} 20... Qb8 {[%clk
0:01:30.6]} 21. Nf3 {[%clk 0:01:25.3]} 21... Bg5 {[%clk 0:01:30.4]} 22. Nxg5
{[%clk 0:01:23.3]} 22... hxg5 {[%clk 0:01:31.3]} 23. Qxg5 {[%clk 0:01:23.9]}
23... Qb6 {[%clk 0:01:27.3]} 24. Bf4 {[%clk 0:01:13.1]} 24... b4 {[%clk
0:01:17.3]} 25. Be3 {[%clk 0:01:09.6]} 25... Qb5 {[%clk 0:01:17.4]} 26. Rd2
{[%clk 0:01:00.9]} 26... Bxg4 {[%clk 0:01:13.4]} 27. Bd4 {[%clk 0:00:51.4]}
27... Rh5 {[%clk 0:01:10.8]} 28. Qe3 {[%clk 0:00:38.8]} 28... Re8 {[%clk
0:01:09.8]} 29. Qg3 {[%clk 0:00:34.6]} 29... Bxh3 {[%clk 0:00:24.1]} 30. Bxf6
{[%clk 0:00:27.5]} 30... gxf6 {[%clk 0:00:21]} 31. Bxh3 {[%clk 0:00:27.6]} 31...
Qc4 {[%clk 0:00:07]} 32. Rhd1 {[%clk 0:00:24.9]} 32... Ree5 {[%clk 0:00:04.3]}
33. Bf1 {[%clk 0:00:24.4]} 33... Qc5 {[%clk 0:00:02.5]} 34. Bg2 {[%clk
0:00:19.9]} 34... Rhg5 {[%clk 0:00:02.8]} 35. Qh3 {[%clk 0:00:20.2]} 35... Rh5
{[%clk 0:00:03.1]} 36. Qc8+ {[%clk 0:00:18.6]} 36... Kg7 {[%clk 0:00:03.7]} 37.
Bf3 {[%clk 0:00:17.8]} 37... Rh2 {[%clk 0:00:03.2]} 38. Qg4+ {[%clk 0:00:15.1]}
38... Rg5 {[%clk 0:00:03.5]} 39. Qe4 {[%clk 0:00:14.1]} 39... Rxf2 {[%clk
0:00:02.9]} 40. Rxf2 {[%clk 0:00:14.6]} 40... Qxf2 {[%clk 0:00:03.8]} 41. b3
{[%clk 0:00:15.5]} 41... Rg1 {[%clk 0:00:02.7]} 42. Rxg1+ {[%clk 0:00:14.9]}
42... Qxg1+ {[%clk 0:00:03.6]} 43. Kb2 {[%clk 0:00:15.8]} 43... Qc5 {[%clk
0:00:04.5]} 44. Qg4+ {[%clk 0:00:15.7]} 44... Kf8 {[%clk 0:00:04.5]} 45. Qc4
{[%clk 0:00:14.3]} 45... Qe3 {[%clk 0:00:04.5]} 46. Be4 {[%clk 0:00:13.2]} 46...
f5 {[%clk 0:00:04.1]} 47. Bd3 {[%clk 0:00:13.6]} 47... Qe5+ {[%clk 0:00:04.7]}
48. Kb1 {[%clk 0:00:13]} 48... a5 {[%clk 0:00:05.6]} 49. Be2 {[%clk 0:00:08.5]}
49... f4 {[%clk 0:00:06.2]} 50. Qd3 {[%clk 0:00:08.4]} 50... f5 {[%clk 0:00:06]}
51. Bd1 {[%clk 0:00:08.1]} 51... Ke7 {[%clk 0:00:06.1]} 52. Qf3 {[%clk
0:00:08.4]} 52... Kf6 {[%clk 0:00:06.4]} 53. Be2 {[%clk 0:00:08.5]} 53... Qd4
{[%clk 0:00:06.7]} 54. Bd3 {[%clk 0:00:08.5]} 54... Ke5 {[%clk 0:00:07]} 55.
Qe2+ {[%clk 0:00:08.7]} 55... Qe3 {[%clk 0:00:07.3]} 56. Qh5 {[%clk 0:00:06.1]}
56... f3 {[%clk 0:00:07.3]} 57. Qxf5+ {[%clk 0:00:06]} 57... Kd4 {[%clk
0:00:07.3]} 58. Qg4+ {[%clk 0:00:06.5]} 58... Kc3 {[%clk 0:00:07.5]} 59. Qc4+
{[%clk 0:00:06.6]} 59... Kd2 {[%clk 0:00:07.9]} 60. a4 {[%clk 0:00:06.8]} 60...
Qe1+ {[%clk 0:00:08.1]} 61. Ka2 {[%clk 0:00:07.2]} 61... Qc1 {[%clk 0:00:08.7]}
62. Qf4+ {[%clk 0:00:07.1]} 62... Kd1 {[%clk 0:00:08.4]} 63. Qxf3+ {[%clk
0:00:07.7]} 63... Kd2 {[%clk 0:00:08.9]} 64. Qf4+ {[%clk 0:00:08.2]} 64... Kd1
{[%clk 0:00:09.5]} 65. Qf1+ {[%clk 0:00:08.4]} 65... Kd2 {[%clk 0:00:09.8]} 66.
Qf2+ {[%clk 0:00:06.8]} 66... Kd1 {[%clk 0:00:10]} 67. Qg1+ {[%clk 0:00:06.9]}
67... Kd2 {[%clk 0:00:10.4]} 68. Qxc1+ {[%clk 0:00:07.5]} 68... Kxc1 {[%clk
0:00:10.7]} 69. Ka1 {[%clk 0:00:08.4]} 69... Kd2 {[%clk 0:00:11]} 70. Kb2 {[%clk
0:00:09.2]} 70... Kd1 {[%clk 0:00:11.5]} 71. c3 {[%clk 0:00:08.6]} 71... Kd2
{[%clk 0:00:11.9]} 72. cxb4 {[%clk 0:00:09.1]} 72... Kxd3 {[%clk 0:00:12]} 73.
bxa5 {[%clk 0:00:09.3]} 1-0

[Event "*** SCC Grand Prix: Titled Tuesday Blitz"]
[Site "Chess.com"]
[Date "2020.08.11"]
[Round "8"]
[White "CrazyMartian"]
[Black "korbul"]
[Result "1/2-1/2"]
[WhiteElo "2341"]
[BlackElo "2554"]
[TimeControl "180+1"]
[EndTime "11:36:01 PDT"]
[Termination "Game drawn - insufficient material"]

1. d4 {[%clk 0:03:00.9]} 1... Nf6 {[%clk 0:02:59.7]} 2. Bf4 {[%clk 0:03:00.1]}
2... b6 {[%clk 0:02:59]} 3. e3 {[%clk 0:03:00]} 3... Bb7 {[%clk 0:02:59.4]} 4.
Nd2 {[%clk 0:02:58.6]} 4... g6 {[%clk 0:02:59.6]} 5. h3 {[%clk 0:02:57.7]} 5...
Bg7 {[%clk 0:02:59.9]} 6. Ngf3 {[%clk 0:02:58.2]} 6... O-O {[%clk 0:03:00.1]} 7.
c3 {[%clk 0:02:56.7]} 7... d6 {[%clk 0:03:00.3]} 8. Bd3 {[%clk 0:02:56.6]} 8...
Nbd7 {[%clk 0:03:00.3]} 9. Bh2 {[%clk 0:02:56.7]} 9... e6 {[%clk 0:03:00.2]} 10.
O-O {[%clk 0:02:56]} 10... Qe7 {[%clk 0:03:00.5]} 11. Re1 {[%clk 0:02:55.4]}
11... e5 {[%clk 0:03:00.7]} 12. e4 {[%clk 0:02:54.6]} 12... Rad8 {[%clk
0:02:56]} 13. d5 {[%clk 0:02:52.4]} 13... h6 {[%clk 0:02:50.1]} 14. b4 {[%clk
0:02:50.8]} 14... Nh7 {[%clk 0:02:44.7]} 15. Qc2 {[%clk 0:02:47.4]} 15... Ndf6
{[%clk 0:02:40.7]} 16. a4 {[%clk 0:02:45.5]} 16... a6 {[%clk 0:02:38.6]} 17. a5
{[%clk 0:02:43.8]} 17... b5 {[%clk 0:02:38.2]} 18. c4 {[%clk 0:02:44]} 18...
bxc4 {[%clk 0:02:37.3]} 19. Bxc4 {[%clk 0:02:41.1]} 19... Nh5 {[%clk 0:02:37]}
20. Rac1 {[%clk 0:02:37.1]} 20... f5 {[%clk 0:02:25.9]} 21. exf5 {[%clk
0:02:16.3]} 21... gxf5 {[%clk 0:02:25.5]} 22. Nd4 {[%clk 0:02:11.4]} 22... Ng5
{[%clk 0:01:51.7]} 23. Nxf5 {[%clk 0:01:56.7]} 23... Rxf5 {[%clk 0:01:35.1]} 24.
Qxf5 {[%clk 0:01:55.5]} 24... Bc8 {[%clk 0:01:34.3]} 25. Qg6 {[%clk 0:01:39]}
25... Nf6 {[%clk 0:01:28.5]} 26. Bxe5 {[%clk 0:01:17.6]} 26... Rf8 {[%clk
0:01:13.9]} 27. Bxf6 {[%clk 0:01:01.9]} 27... Qxf6 {[%clk 0:01:12.4]} 28. Qxf6
{[%clk 0:01:01.5]} 28... Bxf6 {[%clk 0:01:12.7]} 29. Ne4 {[%clk 0:00:49.3]}
29... Bd4 {[%clk 0:01:11]} 30. Rc2 {[%clk 0:00:28.7]} 30... Nf7 {[%clk
0:01:08.6]} 31. Ng3 {[%clk 0:00:20.8]} 31... Ne5 {[%clk 0:01:07.3]} 32. Bf1
{[%clk 0:00:18.3]} 32... Rf7 {[%clk 0:01:01.3]} 33. b5 {[%clk 0:00:17.4]} 33...
Bb7 {[%clk 0:00:59.4]} 34. bxa6 {[%clk 0:00:16.7]} 34... Bxd5 {[%clk 0:00:59.9]}
35. Ne4 {[%clk 0:00:14]} 35... Nd7 {[%clk 0:00:54.6]} 36. Bc4 {[%clk 0:00:13.3]}
36... Bxc4 {[%clk 0:00:53.9]} 37. Rxc4 {[%clk 0:00:14]} 37... c5 {[%clk
0:00:42.5]} 38. Nxd6 {[%clk 0:00:10]} 38... Rf8 {[%clk 0:00:38.8]} 39. Re8
{[%clk 0:00:07.8]} 39... Bxf2+ {[%clk 0:00:35.9]} 40. Kf1 {[%clk 0:00:08.1]}
40... Rxe8 {[%clk 0:00:36.8]} 41. Nxe8 {[%clk 0:00:08.7]} 41... Ne5 {[%clk
0:00:37.1]} 42. Re4 {[%clk 0:00:08.3]} 42... Nc6 {[%clk 0:00:36.3]} 43. Nd6
{[%clk 0:00:07.9]} 43... Bd4 {[%clk 0:00:35.6]} 44. Re8+ {[%clk 0:00:06.1]}
44... Kg7 {[%clk 0:00:35.4]} 45. Rc8 {[%clk 0:00:06.6]} 45... Nxa5 {[%clk
0:00:34.7]} 46. a7 {[%clk 0:00:06.7]} 46... Nb3 {[%clk 0:00:34.8]} 47. a8=Q
{[%clk 0:00:07]} 47... Nd2+ {[%clk 0:00:35.7]} 48. Ke2 {[%clk 0:00:06.9]} 48...
Nb1 {[%clk 0:00:36.1]} 49. Rg8+ {[%clk 0:00:07.8]} 49... Kf6 {[%clk 0:00:35.9]}
50. Qf8+ {[%clk 0:00:07.5]} 50... Ke6 {[%clk 0:00:35.9]} 51. Rg6+ {[%clk
0:00:08.1]} 51... Kd5 {[%clk 0:00:36]} 52. Qf7+ {[%clk 0:00:08.4]} 52... Kc6
{[%clk 0:00:36.1]} 53. Ne4+ {[%clk 0:00:08.4]} 53... Kb5 {[%clk 0:00:36.1]} 54.
Qb3+ {[%clk 0:00:08.8]} 54... Ka5 {[%clk 0:00:35.6]} 55. Qxb1 {[%clk 0:00:09]}
55... c4 {[%clk 0:00:36.5]} 56. Qa2+ {[%clk 0:00:07.9]} 56... Kb4 {[%clk
0:00:36.6]} 57. Rb6+ {[%clk 0:00:06.2]} 57... Bxb6 {[%clk 0:00:35.5]} 58. Qb2+
{[%clk 0:00:06.8]} 58... Ka5 {[%clk 0:00:34.8]} 59. Qxb6+ {[%clk 0:00:07.4]}
59... Kxb6 {[%clk 0:00:34.8]} 60. Nc3 {[%clk 0:00:08]} 60... Kc5 {[%clk
0:00:34.8]} 61. Kd2 {[%clk 0:00:08.9]} 61... Kd4 {[%clk 0:00:35.1]} 62. Ne2+
{[%clk 0:00:08.7]} 62... Ke4 {[%clk 0:00:35.2]} 63. Ke1 {[%clk 0:00:09.2]} 63...
Ke3 {[%clk 0:00:35.3]} 64. Kf1 {[%clk 0:00:09.7]} 64... Kd3 {[%clk 0:00:35]} 65.
Kf2 {[%clk 0:00:10]} 65... Ke4 {[%clk 0:00:35.2]} 66. g3 {[%clk 0:00:09.8]}
66... h5 {[%clk 0:00:35.5]} 67. h4 {[%clk 0:00:09.7]} 67... Kf5 {[%clk 0:00:35]}
68. Kf3 {[%clk 0:00:10.1]} 68... Ke5 {[%clk 0:00:35.5]} 69. Nc3 {[%clk 0:00:10]}
69... Kf5 {[%clk 0:00:35.5]} 70. Na4 {[%clk 0:00:10.1]} 70... Ke5 {[%clk
0:00:34.5]} 71. Nc3 {[%clk 0:00:10.3]} 71... Kf5 {[%clk 0:00:34.7]} 72. Ne4
{[%clk 0:00:10.7]} 72... Ke5 {[%clk 0:00:34]} 73. Ke3 {[%clk 0:00:11]} 73... Kf5
{[%clk 0:00:34.2]} 74. Nf2 {[%clk 0:00:11.3]} 74... Ke5 {[%clk 0:00:33]} 75. Kf3
{[%clk 0:00:10.7]} 75... Kf5 {[%clk 0:00:32.1]} 76. Ke3 {[%clk 0:00:10.3]} 76...
Ke5 {[%clk 0:00:32.2]} 77. Nd1 {[%clk 0:00:10.8]} 77... Kf5 {[%clk 0:00:31.9]}
78. Kd2 {[%clk 0:00:10.7]} 78... Kg4 {[%clk 0:00:31.7]} 79. Ne3+ {[%clk
0:00:08.1]} 79... Kxg3 {[%clk 0:00:31.3]} 80. Nf5+ {[%clk 0:00:06.9]} 80... Kg4
{[%clk 0:00:31.2]} 81. Ng7 {[%clk 0:00:07]} 81... Kxh4 {[%clk 0:00:30.9]} 82.
Nxh5 {[%clk 0:00:07.5]} 82... Kxh5 {[%clk 0:00:31.2]} 83. Kc3 {[%clk 0:00:08.4]}
83... Kg4 {[%clk 0:00:31.8]} 84. Kxc4 {[%clk 0:00:09.3]} 1/2-1/2